[Event "EIWCC 2018"]
[Site "Vysoke Tatry"]
[Date "2018.04.11"]
[Round "4"]
[White "Vidic, Teja"]
[Black "Fataliyeva, Ulviyya"]
[Result "0-1"]
[ECO "C03"]
[WhiteElo "2176"]
[BlackElo "2361"]
[Annotator "NA"]
[PlyCount "82"]
[EventDate "2018.??.??"]
[EventType "swiss"]
[EventCountry "SVK"]
[SourceTitle "playchess.com"]
[Source "ChessBase"]
[SourceQuality "1"]
[TimeControl "40/5400+30:1800+30"]

1. e4 {[%emt 0:00:00]} e6 {[%emt 0:00:02]} 2. d4 {[%emt 0:00:00]} d5 {[%emt 0:00:02]} 3. Nd2 {[%emt 0:00:00]} a6 {[%emt 0:00:01]} 4. Ngf3 {[%emt 0:00:04]} c5 {[%emt 0:00:02]} 5. exd5 {[%emt 0:01:02] LiveBook: 801 Games} exd5 {[%emt 0:00:01]} 6. Be2 {[%emt 0:00:08]} Nf6 {[%emt 0:00:23]} 7. O-O {[%emt 0:00:20]} Be7 {[%emt 0:00:58]} 8. dxc5 {[%emt 0:02:09]} Bxc5 {[%emt 0:00:08]} 9. Nb3 {[%emt 0:00:04]} Bb6 {[%emt 0:00:09]} 10. Bg5 {[%emt 0:02:51] C08: French Tarrasch: 3...c5 4 exd5 exd5 sidelines} O-O {[%emt 0:01:02]} 11. Nfd4 {[%emt 0:04:43]} Nc6 {[%emt 0:00:41]} 12. c3 {[%emt 0:05:30]} h6 {[%emt 0:00:56]} 13. Bh4 {[%emt 0:00:23]} Re8 {[%emt 0:02:21]} 14. Bf3 {[%emt 0:05:15]} g5 {[%emt 0:01:03]} 15. Bg3 {[%emt 0:03:46]} Ne5 $146 {[%emt 0:04:58]} ({Predecessor:} 15... Ne4 16. Bxe4 dxe4 17. Qh5 Qf6 18. Nxc6 bxc6 {½-½ (43) Yemelin,V (2574)-Kanovsky,D (2419) Czechia 2015}) 16. Re1 {[%emt 0:03:15]} Bc7 {[%emt 0:02:46]} 17. h4 {[%emt 0:10:43]} g4 $1 {[%emt 0:09:40]} 18. Be2 {[%emt 0:00:24]} Ne4 {[%emt 0:03:52]} 19. Bd3 $1 {[%emt 0:05:58]} f5 {[%emt 0:04:24]} 20. Ne2 {[%emt 0:08:11]} Be6 {[%emt 0:25:10]} 21. Nbd4 {[%emt 0:00:37]} Bd7 {[%emt 0:01:31]} (21... Qf6 $11) 22. Rc1 {[%emt 0:14:32]} ({Better is} 22. Bxe4 $16 dxe4 23. Qb3+ Kh8 24. Nf4 (24. Qxb7 Rb8 $14)) 22... Kh7 {[%emt 0:03:46]} 23. Bc2 {[%emt 0:06:19]} Nc4 {[%emt 0:12:23]} 24. Bxe4 fxe4 {[%emt 0:00:45]} 25. Qc2 {[%emt 0:02:54]} Rf8 {[%emt 0:06:34]} 26. b3 {[%emt 0:03:17]} Ne5 {[%emt 0:06:09]} 27. c4 {[%emt 0:02:45]} Nd3 {[%emt 0:00:33]} 28. cxd5 {[%emt 0:00:04]} Bxg3 {[%emt 0:00:12]} 29. Nxg3 $15 {[%emt 0:07:15]} (29. fxg3 $11 Rc8 30. Qb1) 29... Rxf2 {[%emt 0:00:37]} 30. Re2 {[%emt 0:01:09]} Rc8 {[%emt 0:00:49]} 31. Nc6 {[%emt 0:02:00]} bxc6 {[%emt 0:05:58]} 32. Nxe4 {[%emt 0:05:03]} cxd5 {[%emt 0:04:44]} 33. Qxd3 {[%emt 0:02:46]} Rxc1+ {[%emt 0:00:08]} 34. Kxf2 {[%emt 0:00:15]} dxe4 {[%emt 0:01:18]} 35. Qxe4+ {[%emt 0:00:04]} Kh8 {[%emt 0:00:11]} 36. Qd4+ {[%emt 0:03:25]} Kg8 {[%emt 0:00:05]} 37. Qd5+ {[%emt 0:01:07]} Kg7 {[%emt 0:00:17]} 38. Rd2 {[%emt 0:00:46]} Qf6+ {[%emt 0:00:35]} 39. Ke3 {[%emt 0:00:24]} Re1+ {[%emt 0:00:52]} 40. Kd3 {[%emt 0:00:00]} Bf5+ {[%emt 0:00:23]} 41. Kc4 {[%emt 0:00:20]} Be6 {[%emt 0:00:26] Kd4} 0-1

[Event "EIWCC 2018"]
[Site "Vysoke Tatry"]
[Date "2018.04.11"]
[Round "4"]
[White "Batyte, Daiva"]
[Black "Brunello, Marina"]
[Result "0-1"]
[ECO "A21"]
[WhiteElo "2165"]
[BlackElo "2307"]
[Annotator "RC"]
[PlyCount "138"]
[EventDate "2018.??.??"]
[EventType "swiss"]
[EventCountry "SVK"]
[SourceTitle "playchess.com"]
[Source "ChessBase"]
[SourceQuality "1"]
[TimeControl "40/5400+30:1800+30"]

1. c4 {[%emt 0:00:00]} e5 {[%emt 0:00:05]} 2. Nc3 {[%emt 0:02:20]} Bb4 {[%emt 0:00:10]} 3. Nd5 {[%emt 0:06:50]} Bc5 {[%emt 0:00:06]} 4. e3 {[%emt 0:01:03]} Nf6 {[%emt 0:00:08]} 5. Nc3 {[%emt 0:04:39]} d5 {[%emt 0:15:59]} 6. cxd5 {[%emt 0:12:40]} Nxd5 {[%emt 0:00:07]} 7. Nf3 {[%emt 0:00:38]} Nc6 {[%emt 0:04:41]} 8. d3 {[%emt 0:03:53]} Be6 {[%emt 0:06:50]} 9. Be2 {[%emt 0:05:45]} O-O {[%emt 0:06:18]} 10. O-O {[%emt 0:03:22]} Be7 {[%emt 0:02:17]} 11. e4 {[%emt 0:13:26]} Nb6 {[%emt 0:03:41]} 12. Be3 {[%emt 0:02:06]} Bf6 {[%emt 0:02:37]} 13. Na4 {[%emt 0:03:59]} Nxa4 {[%emt 0:06:06]} 14. Qxa4 {[%emt 0:00:12]} Qd6 {[%emt 0:00:11]} 15. Rac1 {[%emt 0:04:02]} Rfd8 {[%emt 0:00:38]} 16. Ng5 {[%emt 0:06:22]} Bxg5 {[%emt 0:04:12]} 17. Bxg5 {[%emt 0:00:08]} Nd4 {[%emt 0:00:06]} 18. Bd1 {[%emt 0:01:43]} f6 {[%emt 0:06:03]} 19. Be3 {[%emt 0:02:02]} Qe7 {[%emt 0:04:12]} 20. Qa5 {[%emt 0:04:18]} b6 {[%emt 0:01:18]} 21. Qc3 {[%emt 0:01:37]} c5 {[%emt 0:00:25]} 22. a3 {[%emt 0:00:41]} a5 {[%emt 0:00:06]} 23. f4 {[%emt 0:01:41]} h6 {[%emt 0:09:54]} 24. Qe1 {[%emt 0:01:21]} Kh8 {[%emt 0:05:03]} 25. Qh4 {[%emt 0:01:30]} Ra7 {[%emt 0:00:40]} 26. Kh1 {[%emt 0:01:57]} Kh7 {[%emt 0:03:56]} 27. Bh5 {[%emt 0:00:21]} exf4 {[%emt 0:01:09]} 28. Qxf4 {[%emt 0:00:59]} Nc6 {[%emt 0:00:30]} 29. Rcd1 {[%emt 0:01:44]} Rad7 {[%emt 0:00:22]} 30. Qg3 {[%emt 0:00:15]} Ne5 {[%emt 0:00:13]} 31. d4 {[%emt 0:00:27]} cxd4 {[%emt 0:00:26]} 32. Bf4 {[%emt 0:00:18]} Bc4 {[%emt 0:01:40]} 33. Rf2 {[%emt 0:03:51]} a4 {[%emt 0:01:18]} 34. h3 {[%emt 0:01:11]} b5 {[%emt 0:00:55]} 35. Rfd2 {[%emt 0:02:44]} Bf7 {[%emt 0:06:41]} 36. Bxf7 {[%emt 0:01:45]} Nxf7 {[%emt 0:00:13]} 37. Qd3 {[%emt 0:00:11]} Rb7 {[%emt 0:02:41]} 38. e5+ {[%emt 0:00:32]} Kg8 {[%emt 0:00:56]} 39. exf6 {[%emt 0:02:10]} Qxf6 {[%emt 0:00:03]} 40. Qf3 {[%emt 0:00:00]} Rbd7 {[%emt 0:02:49]} 41. Qg3 {[%emt 0:07:10]} Rd5 {[%emt 0:03:05]} 42. Bc7 {[%emt 0:02:04]} R8d7 {[%emt 0:03:44]} 43. Re2 {[%emt 0:03:06]} Qg5 {[%emt 0:03:54]} 44. Qxg5 {[%emt 0:03:46]} Nxg5 {[%emt 0:02:20]} 45. Bb6 {[%emt 0:00:59]} R7d6 {[%emt 0:02:56]} 46. Ba7 {[%emt 0:05:14]} Kf7 {[%emt 0:01:06]} 47. Rd3 Kg6 {[%emt 0:01:31]} 48. Kh2 {[%emt 0:01:34]} Ne6 {[%emt 0:00:53]} 49. Re4 {[%emt 0:01:55]} Kf5 {[%emt 0:01:09]} 50. Rg4 {[%emt 0:05:36]} g5 {[%emt 0:01:19]} 51. Bb8 {[%emt 0:01:09]} h5 {[%emt 0:02:01]} 52. Rf3+ {[%emt 0:02:27]} Nf4 {[%emt 0:01:57]} 53. Rgg3 {[%emt 0:00:43]} h4 {[%emt 0:04:55]} 54. Rg4 {[%emt 0:00:12]} d3 {[%emt 0:00:32]} 55. Bxd6 {[%emt 0:00:18]} Rxd6 {[%emt 0:00:07]} 56. Rf1 {[%emt 0:00:37]} Re6 {[%emt 0:04:40]} 57. Rc1 {[%emt 0:01:41]} Re5 {[%emt 0:00:39]} 58. Rd1 {[%emt 0:00:39]} Re2 {[%emt 0:02:50]} 59. Rxf4+ {[%emt 0:00:27]} gxf4 {[%emt 0:01:13]} 60. Rxd3 {[%emt 0:00:48]} Ke4 {[%emt 0:00:30]} 61. Rd7 {[%emt 0:01:03]} f3 {[%emt 0:00:51]} 62. Kg1 {[%emt 0:00:21]} Rxg2+ {[%emt 0:00:16]} 63. Kf1 {[%emt 0:00:06]} Rxb2 {[%emt 0:00:11]} 64. Rh7 {[%emt 0:00:16]} Ke3 {[%emt 0:00:38]} 65. Re7+ {[%emt 0:00:11]} Kf4 {[%emt 0:00:38]} 66. Rg7 {[%emt 0:00:37]} b4 {[%emt 0:00:51]} 67. axb4 {[%emt 0:02:31]} a3 {[%emt 0:00:03]} 68. b5 {[%emt 0:02:48]} a2 {[%emt 0:00:06]} 69. Ra7 {[%emt 0:00:07]} Rb1+ {[%emt 0:00:04]} 0-1

[Event "EIWCC 2018"]
[Site "Vysoke Tatry"]
[Date "2018.04.11"]
[Round "4"]
[White "Pavlidou, Ekaterini"]
[Black "Eric, Jovana"]
[Result "0-1"]
[ECO "A85"]
[WhiteElo "2164"]
[BlackElo "2300"]
[Annotator "NA"]
[PlyCount "70"]
[EventDate "2018.??.??"]
[EventType "swiss"]
[EventCountry "SVK"]
[SourceTitle "playchess.com"]
[Source "ChessBase"]
[SourceQuality "1"]
[TimeControl "40/5400+30:1800+30"]

1. d4 {[%emt 0:00:00]} f5 {[%emt 0:00:13]} 2. c4 {[%emt 0:00:11]} Nf6 {[%emt 0:00:23]} 3. Nc3 {[%emt 0:00:32]} d6 {[%emt 0:00:37]} 4. g3 {[%emt 0:09:26]} g6 {[%emt 0:01:28]} 5. Bg2 {[%emt 0:04:31]} Bg7 {[%emt 0:01:57]} 6. Nh3 {[%emt 0:03:47]} O-O {[%emt 0:03:10]} 7. Nf4 {[%emt 0:02:02]} Nc6 {[%emt 0:05:46] A86: Dutch Defence: Leningrad System: Unusual lines and 5 Nh3} 8. d5 {[%emt 0:08:31]} Ne5 {[%emt 0:00:45]} 9. Qb3 {[%emt 0:02:11]} c5 {[%emt 0:08:47]} 10. O-O {[%emt 0:06:22] LiveBook: 9 Games} a6 {[%emt 0:03:14]} 11. a4 {[%emt 0:00:29]} Qa5 {[%emt 0:02:12]} 12. Nd3 {[%emt 0:09:13]} Rb8 $146 {[%emt 0:15:00]} ({Predecessor:} 12... Nfg4 13. h3 Nxd3 14. exd3 Ne5 15. Qc2 b5 16. cxb5 axb5 17. Nxb5 {1-0 (46) Hejazipour,M (2327)-Yuffa,D (2527) Cap d'Agde 2017}) 13. Bd2 {[%emt 0:02:47]} Bd7 {[%emt 0:08:22]} ({Better is} 13... Nxd3 $14 14. exd3 Ng4) 14. Rfd1 {[%emt 0:05:01]} Qc7 {[%emt 0:05:05]} 15. h3 {[%emt 0:02:56]} (15. Nxe5 $14 dxe5 16. Qc2) 15... Ne4 {[%emt 0:05:59]} 16. Nxe4 {[%emt 0:04:10]} fxe4 {[%emt 0:00:04]} 17. Nf4 {[%emt 0:01:12]} ({White should play} 17. Nxe5 $14 Bxe5 18. Qc2) 17... Qc8 {[%emt 0:02:50]} ({Black should try} 17... b5 $15 18. cxb5 axb5) 18. Qc2 {[%emt 0:04:46]} b5 {[%emt 0:03:39]} 19. cxb5 {[%emt 0:01:05]} axb5 {[%emt 0:00:05]} 20. a5 {[%emt 0:00:59]} Nc4 {[%emt 0:03:28]} 21. Bc3 {[%emt 0:01:59]} e3 {[%emt 0:11:09]} 22. Bxg7 {[%emt 0:02:16]} exf2+ 23. Kxf2 {[%emt 0:01:40]} Kxg7 {[%emt 0:00:11]} 24. Kg1 {[%emt 0:00:46]} Kg8 {[%emt 0:00:17]} 25. Qc3 {[%emt 0:05:51]} Ne5 {[%emt 0:00:34]} 26. Ne6 {[%emt 0:02:05]} b4 {[%emt 0:01:18]} 27. Qe3 {[%emt 0:01:08]} Bxe6 {[%emt 0:02:06]} 28. dxe6 {[%emt 0:00:02]} Qa6 {[%emt 0:00:45]} 29. Bd5 $15 {[%emt 0:02:42]} c4 {[%emt 0:00:35]} 30. Rd4 {[%emt 0:01:47]} Rb5 {[%emt 0:03:33]} 31. Rh4 {[%emt 0:03:15]} h5 {[%emt 0:00:45]} 32. Bxc4 {[%emt 0:04:02]} Nxc4 {[%emt 0:00:14]} 33. Rxc4 {[%emt 0:00:11]} Rxa5 {[%emt 0:00:59]} 34. Rxa5 {[%emt 0:03:11]} Qxa5 {[%emt 0:02:44]} 35. Qh6 {[%emt 0:00:41]} Qa7+ {[%emt 0:01:18]} 0-1

[Event "EIWCC 2018"]
[Site "Vysoke Tatry"]
[Date "2018.04.11"]
[Round "4"]
[White "Smirnova, Ekaterina"]
[Black "Worek, Joanna"]
[Result "0-1"]
[ECO "E59"]
[WhiteElo "2153"]
[BlackElo "2295"]
[Annotator "ChessBase"]
[PlyCount "96"]
[EventDate "2018.??.??"]
[EventType "swiss"]
[EventCountry "SVK"]
[SourceTitle "playchess.com"]
[Source "ChessBase"]
[SourceQuality "1"]
[TimeControl "40/5400+30:1800+30"]

1. d4 {[%emt 0:00:00]} Nf6 {[%emt 0:00:06]} 2. c4 {[%emt 0:00:00]} e6 {[%emt 0:00:06]} 3. Nc3 {[%emt 0:00:00]} Bb4 {[%emt 0:00:09]} 4. e3 {[%emt 0:00:00]} O-O {[%emt 0:00:18]} 5. Bd3 {[%emt 0:00:00]} d5 {[%emt 0:00:45]} 6. Nf3 {[%emt 0:00:00]} dxc4 {[%emt 0:00:15]} 7. Bxc4 {[%emt 0:00:05]} c5 {[%emt 0:00:10]} 8. O-O {[%emt 0:01:10]} Nc6 {[%emt 0:01:03]} 9. a3 {[%emt 0:03:36]} Bxc3 {[%emt 0:00:24]} 10. bxc3 {[%emt 0:00:01]} Qc7 {[%emt 0:00:26]} 11. Ba2 {[%emt 0:17:51]} e5 {[%emt 0:05:12]} 12. d5 {[%emt 0:05:58]} e4 {[%emt 0:01:09]} 13. dxc6 {[%emt 0:02:27]} exf3 {[%emt 0:00:16]} 14. Qxf3 {[%emt 0:00:05]} Bg4 {[%emt 0:00:17]} 15. Qg3 {[%emt 0:00:10]} Qxc6 {[%emt 0:00:07]} 16. f3 {[%emt 0:00:12]} Be6 {[%emt 0:00:43]} 17. Bxe6 {[%emt 0:02:01]} Qxe6 {[%emt 0:00:42]} 18. e4 {[%emt 0:00:09]} Rfd8 {[%emt 0:00:17]} 19. Bg5 {[%emt 0:03:32]} Rd3 {[%emt 0:10:58]} 20. Qc7 {[%emt 0:01:02]} b6 {[%emt 0:02:36]} 21. Rad1 {[%emt 0:03:59]} c4 {[%emt 0:08:24]} 22. Bxf6 {[%emt 0:00:44]} gxf6 {[%emt 0:00:21]} 23. Rxd3 {[%emt 0:20:30]} cxd3 {[%emt 0:00:08]} 24. Rd1 {[%emt 0:00:25]} Qb3 {[%emt 0:10:05]} 25. Qg3+ {[%emt 0:00:12]} Kh8 {[%emt 0:00:54]} 26. Qe1 {[%emt 0:00:06]} Rd8 {[%emt 0:12:38]} 27. e5 {[%emt 0:01:25]} f5 {[%emt 0:00:05]} 28. h3 {[%emt 0:08:18]} Qc4 {[%emt 0:08:44]} 29. Kh1 {[%emt 0:04:26]} Rd7 {[%emt 0:05:53]} 30. Qd2 {[%emt 0:06:14]} Qb3 {[%emt 0:08:26]} 31. Qc1 {[%emt 0:04:52]} Qc2 {[%emt 0:01:29]} 32. Qd2 {[%emt 0:01:18]} Rd5 {[%emt 0:03:52]} 33. f4 {[%emt 0:00:58]} Qa4 {[%emt 0:00:50]} 34. Ra1 {[%emt 0:02:58]} Kg7 {[%emt 0:04:32]} 35. Kh2 {[%emt 0:02:46]} Kf8 {[%emt 0:04:50]} 36. Kh1 {[%emt 0:01:12]} Ke8 {[%emt 0:01:08]} 37. Kh2 {[%emt 0:01:53]} Kd7 {[%emt 0:00:47]} 38. Kh1 {[%emt 0:00:19]} Qc2 {[%emt 0:06:21]} 39. Qd1 {[%emt 0:03:14]} Kc6 {[%emt 0:00:49]} 40. Kg1 {[%emt 0:00:00]} Kc5 {[%emt 0:01:07]} 41. Kf1 {[%emt 0:01:21]} Kc4 {[%emt 0:02:47]} 42. Qh5 {[%emt 0:04:40]} d2 {[%emt 0:03:38]} 43. Rd1 {[%emt 0:00:06]} Kxc3 {[%emt 0:02:42]} 44. Kf2 {[%emt 0:01:42]} Qe4 {[%emt 0:01:38]} 45. Qxf7 {[%emt 0:01:18]} Qxf4+ {[%emt 0:01:12]} 46. Kg1 {[%emt 0:00:05]} Qe3+ {[%emt 0:00:08]} 47. Kf1 {[%emt 0:00:10]} Rd4 {[%emt 0:02:15]} 48. Qc7+ {[%emt 0:01:44]} Kb2 {[%emt 0:00:19]} 0-1

[Event "EIWCC 2018"]
[Site "Vysoke Tatry"]
[Date "2018.04.11"]
[Round "4"]
[White "Kusenkova, Natallia"]
[Black "Cibickova, Zuzana"]
[Result "1-0"]
[ECO "E04"]
[WhiteElo "2134"]
[BlackElo "2327"]
[Annotator "NA"]
[PlyCount "69"]
[EventDate "2018.??.??"]
[EventType "swiss"]
[EventCountry "SVK"]
[SourceTitle "playchess.com"]
[Source "ChessBase"]
[SourceQuality "1"]
[TimeControl "40/5400+30:1800+30"]

1. d4 {[%emt 0:00:00]} d5 {[%emt 0:01:18]} 2. c4 {[%emt 0:00:00]} e6 {[%emt 0:03:56]} 3. Nf3 {[%emt 0:00:47]} Nf6 {[%emt 0:00:13]} 4. g3 {[%emt 0:02:23]} dxc4 {[%emt 0:00:53]} 5. Bg2 {[%emt 0:02:51]} a6 {[%emt 0:00:03]} 6. a4 {[%emt 0:05:04]} Bb4+ {[%emt 0:01:20] E04: Open Catalan: 5 Nf3} (6... c5 7. Qc2 cxd4 8. Qxc4 Nc6 9. O-O Be7 10. Bf4 Nh5 11. Be5 Bf6 12. Qc5 Be7 13. Qc4 Bf6 14. Qc5 Be7 15. Qc4 Nxe5 16. Nxe5 f6 17. Bf3 {½-½ (17) Lubczynski,R (2431)-Jakubowski,K (2529) Poronin 2016}) 7. Bd2 {[%emt 0:01:02]} a5 $146 {[%emt 0:12:55]} ({Find the theoretical novelty and annotate with similar games:} 7... c5 8. Bxb4 cxb4 9. Qc2 Nc6 10. Qxc4 O-O 11. O-O Qe7 12. Nbd2 Bd7 13. e4 Rfc8 14. Qd3 {1-0 (41) Pienabarca,N (2115)-Neuschmied,S (2243) Bergamo 2013}) 8. Bxb4 {[%emt 0:07:04]} axb4 {[%emt 0:00:02]} 9. Ne5 {[%emt 0:00:27]} O-O {[%emt 0:02:20]} 10. Nxc4 {[%emt 0:06:26]} Nc6 {[%emt 0:02:38]} 11. e3 {[%emt 0:00:49]} Na5 {[%emt 0:01:52]} (11... e5 $5) 12. Nbd2 {[%emt 0:03:26]} Qe7 {[%emt 0:16:47]} 13. O-O {[%emt 0:06:41]} Rd8 {[%emt 0:02:39]} 14. Qc2 {[%emt 0:04:21]} Nxc4 {[%emt 0:24:10]} 15. Nxc4 {[%emt 0:00:45]} Nd7 {[%emt 0:01:18]} 16. Rfd1 {[%emt 0:07:20]} Rb8 {[%emt 0:05:53]} 17. Ne5 {[%emt 0:10:16]} c5 {[%emt 0:11:02]} 18. Nxd7 {[%emt 0:04:14]} Bxd7 {[%emt 0:00:01]} 19. Qxc5 {[%emt 0:06:16]} Qxc5 {[%emt 0:00:21]} 20. dxc5 {[%emt 0:00:05]} Bc6 {[%emt 0:01:07]} 21. Rxd8+ {[%emt 0:04:13]} Rxd8 {[%emt 0:00:00]} 22. Bxc6 {[%emt 0:00:14]} bxc6 {[%emt 0:00:01]} 23. a5 {[%emt 0:01:09]} Kf8 {[%emt 0:02:31]} 24. a6 {[%emt 0:01:46]} e5 {[%emt 0:00:16]} 25. e4 {[%emt 0:02:09]} Ke7 {[%emt 0:01:31]} 26. Kf1 {[%emt 0:03:39]} h5 {[%emt 0:01:42]} 27. b3 {[%emt 0:03:12]} f5 {[%emt 0:02:20]} 28. f3 $18 {[%emt 0:02:38]} g5 $2 {[%emt 0:01:49]} (28... fxe4 29. fxe4 Ra8) 29. Ke2 {[%emt 0:04:35]} g4 {[%emt 0:02:21]} 30. fxg4 {[%emt 0:07:15]} hxg4 {[%emt 0:00:10]} 31. Ke3 {[%emt 0:01:40]} Ke6 {[%emt 0:00:42]} 32. a7 {[%emt 0:01:15]} Ra8 {[%emt 0:00:01]} 33. Ra6 {[%emt 0:00:22]} fxe4 {[%emt 0:00:49]} 34. Kxe4 {[%emt 0:00:51]} Kd7 {[%emt 0:01:51]} 35. Kxe5 {[%emt 0:00:15]} 1-0

[Event "EIWCC 2018"]
[Site "Vysoke Tatry"]
[Date "2018.04.11"]
[Round "4"]
[White "Froewis, Annika"]
[Black "Milcova, Zuzana"]
[Result "1-0"]
[ECO "B01"]
[WhiteElo "2113"]
[BlackElo "2033"]
[Annotator "NA"]
[PlyCount "81"]
[EventDate "2018.??.??"]
[EventType "swiss"]
[EventCountry "SVK"]
[SourceTitle "playchess.com"]
[Source "ChessBase"]
[SourceQuality "1"]
[TimeControl "40/5400+30:1800+30"]

1. e4 {[%emt 0:00:00]} d5 {[%emt 0:00:04]} 2. exd5 {[%emt 0:00:00]} Qxd5 {[%emt 0:00:04]} 3. Nc3 {[%emt 0:00:00]} Qd6 {[%emt 0:00:05]} 4. d4 {[%emt 0:00:25]} Nf6 {[%emt 0:00:12]} 5. Nf3 {[%emt 0:00:57]} c6 {[%emt 0:00:20]} 6. Ne5 {[%emt 0:05:18]} Nbd7 {[%emt 0:01:20]} 7. Nc4 {[%emt 0:03:48]} Qc7 {[%emt 0:01:35]} 8. g3 {[%emt 0:02:02]} Nb6 {[%emt 0:01:56]} 9. Bf4 {[%emt 0:12:09]} Qd8 {[%emt 0:00:36]} 10. Ne5 {[%emt 0:01:57]} Be6 {[%emt 0:08:38] LiveBook: 4 Games} 11. Bg2 {[%emt 0:10:12]} Nbd5 {[%emt 0:04:36]} 12. Ne2 {[%emt 0:06:09]} Rc8 {[%emt 0:31:10]} 13. O-O {[%emt 0:18:25]} g6 $16 {[%emt 0:03:43]} 14. c4 {[%emt 0:01:47]} Nxf4 {[%emt 0:16:19]} 15. Nxf4 {[%emt 0:00:15]} Bd7 {[%emt 0:08:28]} 16. Re1 {[%emt 0:05:17]} Bg7 {[%emt 0:02:04]} 17. Qa4 {[%emt 0:10:54]} O-O {[%emt 0:08:23]} 18. Qxa7 {[%emt 0:03:58]} Qc7 {[%emt 0:02:01]} 19. Qa3 {[%emt 0:01:00]} Bf5 {[%emt 0:03:19]} 20. Qb3 {[%emt 0:04:45]} e6 {[%emt 0:00:56]} 21. Rad1 {[%emt 0:01:00]} Rcd8 {[%emt 0:01:16]} 22. a3 {[%emt 0:04:01]} h5 {[%emt 0:00:40]} 23. Ne2 {[%emt 0:02:34]} Ng4 {[%emt 0:00:52]} 24. f4 {[%emt 0:01:01]} f6 {[%emt 0:01:25]} 25. Nf3 {[%emt 0:00:40]} Kh7 {[%emt 0:00:36]} 26. Nc3 {[%emt 0:01:39]} Rd7 {[%emt 0:00:15]} 27. Ne4 {[%emt 0:00:50]} b6 {[%emt 0:00:44]} 28. c5 {[%emt 0:01:00]} b5 {[%emt 0:00:18]} 29. Nd6 {[%emt 0:00:24]} Rfd8 {[%emt 0:00:48]} 30. Nxf5 {[%emt 0:00:51]} exf5 {[%emt 0:00:06]} 31. h3 {[%emt 0:00:30]} Nh6 {[%emt 0:00:09]} 32. Re6 {[%emt 0:00:28]} Ng8 {[%emt 0:00:41]} 33. Rxc6 {[%emt 0:00:59]} Qxc6 {[%emt 0:01:17]} 34. Ng5+ {[%emt 0:00:06]} fxg5 {[%emt 0:00:04]} 35. Bxc6 {[%emt 0:00:05]} Rxd4 {[%emt 0:00:35]} 36. Rxd4 {[%emt 0:00:42]} Bxd4+ {[%emt 0:00:28]} 37. Kg2 {[%emt 0:00:13]} Bxc5 {[%emt 0:01:35]} 38. Qf7+ {[%emt 0:00:37]} Kh6 {[%emt 0:00:40]} 39. Be8 {[%emt 0:01:41]} Ne7 {[%emt 0:00:09]} 40. Qf8+ {[%emt 0:00:00]} Kh7 {[%emt 0:00:08]} 41. Bxg6+ {[%emt 0:00:47]} 1-0

[Event "EIWCC 2018"]
[Site "Vysoke Tatry"]
[Date "2018.04.11"]
[Round "4"]
[White "Hapala, Elisabeth"]
[Black "Paramzina, Anastasya"]
[Result "0-1"]
[ECO "B90"]
[WhiteElo "2091"]
[BlackElo "2271"]
[Annotator "NA"]
[PlyCount "76"]
[EventDate "2018.??.??"]
[EventType "swiss"]
[EventCountry "SVK"]
[SourceTitle "playchess.com"]
[Source "ChessBase"]
[SourceQuality "1"]
[TimeControl "40/5400+30:1800+30"]

1. e4 {[%emt 0:00:00]} c5 {[%emt 0:00:06]} 2. Nf3 {[%emt 0:00:00]} d6 {[%emt 0:00:08]} 3. d4 {[%emt 0:00:00]} cxd4 {[%emt 0:00:03]} 4. Nxd4 {[%emt 0:00:00]} Nf6 {[%emt 0:00:04]} 5. Nc3 {[%emt 0:00:00]} a6 {[%emt 0:00:04]} 6. Be3 {[%emt 0:00:00]} e6 {[%emt 0:00:06]} 7. g4 {[%emt 0:00:11]} h6 {[%emt 0:03:08]} 8. Bg2 {[%emt 0:00:39]} Nc6 {[%emt 0:05:21]} 9. h3 {[%emt 0:00:30]} Ne5 {[%emt 0:00:32]} 10. Qe2 {[%emt 0:00:26]} g5 {[%emt 0:03:02]} 11. O-O-O {[%emt 0:00:20]} Bg7 {[%emt 0:00:43]} 12. f4 {[%emt 0:11:40]} gxf4 {[%emt 0:01:10]} 13. Bxf4 {[%emt 0:00:06]} Nfd7 {[%emt 0:02:20]} 14. Kb1 {[%emt 0:13:01]} b5 {[%emt 0:00:50] [#]} 15. h4 {[%emt 0:06:26]} ({Better is} 15. Nf5 $1 $16 {[%cal Rf5g7]} exf5 16. exf5) 15... Bb7 {[%emt 0:05:24] [#]} (15... b4 $14 16. Na4 Qa5) 16. g5 {[%emt 0:07:31]} (16. Nf5 $1 $16 {[%cal Rf5g7]} exf5 17. exf5) 16... b4 {[%emt 0:15:11]} 17. Na4 {[%emt 0:03:13]} Qa5 {[%emt 0:22:02]} 18. b3 {[%emt 0:23:24]} hxg5 $16 {[%emt 0:01:30]} 19. Bxg5 {[%emt 0:08:08]} Rc8 {[%emt 0:11:02]} 20. Nb2 {[%emt 0:10:21]} Qc5 {[%emt 0:05:06]} 21. Na4 {[%emt 0:02:08]} Qa5 {[%emt 0:06:32]} 22. Nb2 {[%emt 0:08:24]} Qc5 {[%emt 0:01:05]} 23. Bh3 {[%emt 0:00:32]} Nc6 {[%emt 0:03:23]} 24. Nxc6 {[%emt 0:03:03]} Qc3 {[%emt 0:02:07]} 25. Nd4 {[%emt 0:01:52]} Bxd4 {[%emt 0:01:29]} 26. Rxd4 {[%emt 0:00:05]} Qxd4 {[%emt 0:00:13]} 27. Nc4 {[%emt 0:00:12]} Rxc4 {[%emt 0:02:24]} 28. Qxc4 {[%emt 0:01:02]} Qxc4 {[%emt 0:00:08]} 29. bxc4 {[%emt 0:00:01]} Bxe4 {[%emt 0:03:47]} 30. Re1 {[%emt 0:00:03]} Nc5 {[%emt 0:01:40]} 31. Kb2 {[%emt 0:01:30]} f5 {[%emt 0:01:49]} 32. Rg1 {[%emt 0:00:39]} Kf7 {[%emt 0:00:22]} 33. c3 {[%emt 0:00:27]} Rb8 {[%emt 0:00:35]} 34. cxb4 {[%emt 0:00:16]} Rxb4+ {[%emt 0:00:10]} 35. Kc3 {[%emt 0:00:04]} Ra4 {[%emt 0:00:05]} 36. Bg2 {[%emt 0:01:10]} Ra3+ {[%emt 0:01:14]} 37. Kb2 {[%emt 0:00:33]} Rg3 {[%emt 0:00:13]} 38. Bf4 {[%emt 0:00:32]} Nd3+ {[%emt 0:00:19]} 0-1